[Event "*** MasterClass Titled Tuesday Blitz"]
[Site "Chess.com"]
[Date "2017.10.03"]
[Round "3"]
[White "MatthewG-p4p"]
[Black "Jungle_Jaguar"]
[Result "0-1"]
[WhiteElo "2593"]
[BlackElo "2383"]
[TimeControl "180+2"]
[EndTime "13:35:44 PDT"]
[Termination "Jungle_Jaguar won by resignation"]

1. c4 {[%clk 0:02:54.7]} 1... e6 {[%clk 0:03:00.4]} 2. Nf3 {[%clk 0:02:53.7]}
2... d5 {[%clk 0:03:01]} 3. g3 {[%clk 0:02:55.3]} 3... Nf6 {[%clk 0:03:02]} 4.
Bg2 {[%clk 0:02:56.9]} 4... c5 {[%clk 0:03:00.7]} 5. O-O {[%clk 0:02:56.9]} 5...
Nc6 {[%clk 0:03:00.1]} 6. b3 {[%clk 0:02:56.8]} 6... Bd6 {[%clk 0:02:55.9]} 7.
Bb2 {[%clk 0:02:57.6]} 7... d4 {[%clk 0:02:56.4]} 8. e3 {[%clk 0:02:58.4]} 8...
e5 {[%clk 0:02:55.7]} 9. exd4 {[%clk 0:02:59.5]} 9... Nxd4 {[%clk 0:02:55.2]}
10. h3 {[%clk 0:02:45.7]} 10... O-O {[%clk 0:02:54.6]} 11. Re1 {[%clk
0:02:46.3]} 11... Re8 {[%clk 0:02:55]} 12. Nc3 {[%clk 0:02:45.2]} 12... Bf5
{[%clk 0:02:52.7]} 13. d3 {[%clk 0:02:42.6]} 13... Qd7 {[%clk 0:02:49.8]} 14.
Kh2 {[%clk 0:02:41.6]} 14... Rad8 {[%clk 0:02:47.8]} 15. Nxd4 {[%clk 0:02:37.9]}
15... exd4 {[%clk 0:02:36.7]} 16. Ne2 {[%clk 0:02:34]} 16... h6 {[%clk
0:02:24.7]} 17. Qd2 {[%clk 0:02:33]} 17... Bg6 {[%clk 0:02:19.5]} 18. Ng1 {[%clk
0:02:22.4]} 18... b6 {[%clk 0:02:15.5]} 19. a3 {[%clk 0:02:19.6]} 19... Qf5
{[%clk 0:02:15.6]} 20. Rxe8+ {[%clk 0:02:14.2]} 20... Rxe8 {[%clk 0:02:15.2]}
21. Rd1 {[%clk 0:02:15.7]} 21... h5 {[%clk 0:02:05.2]} 22. b4 {[%clk 0:02:13.4]}
22... h4 {[%clk 0:02:04.6]} 23. bxc5 {[%clk 0:01:54.1]} 23... hxg3+ {[%clk
0:02:03.8]} 24. fxg3 {[%clk 0:01:55.2]} 24... bxc5 {[%clk 0:02:05]} 25. Bf3
{[%clk 0:01:48.6]} 25... Re3 {[%clk 0:02:03.5]} 26. Qg2 {[%clk 0:01:33.2]} 26...
Nh5 {[%clk 0:01:58.3]} 27. Bc1 {[%clk 0:01:17.6]} 27... Rxd3 {[%clk 0:01:47.8]}
28. Bg4 {[%clk 0:01:12.1]} 28... Qe5 {[%clk 0:01:18.7]} 29. Rxd3 {[%clk
0:01:03.5]} 29... Bxd3 {[%clk 0:01:18.5]} 30. Nf3 {[%clk 0:00:14.7]} 30... Qxg3+
{[%clk 0:01:17.1]} 31. Qxg3 {[%clk 0:00:14.4]} 31... Nxg3 {[%clk 0:01:18.4]} 32.
Kg2 {[%clk 0:00:15.5]} 32... Bxc4 {[%clk 0:01:17.3]} 33. Ng5 {[%clk 0:00:16.3]}
33... Bd5+ {[%clk 0:01:16.7]} 34. Kg1 {[%clk 0:00:17]} 34... f6 {[%clk
0:01:10.9]} 35. Nf3 {[%clk 0:00:17.5]} 35... Ne2+ {[%clk 0:01:11]} 0-1

[Event "*** MasterClass Titled Tuesday Blitz"]
[Site "Chess.com"]
[Date "2017.10.03"]
[Round "3"]
[White "Kacparov"]
[Black "vanea_03"]
[Result "1-0"]
[WhiteElo "2606"]
[BlackElo "2454"]
[TimeControl "180+2"]
[EndTime "13:35:46 PDT"]
[Termination "Kacparov won by resignation"]

1. e4 {[%clk 0:02:45.8]} 1... e5 {[%clk 0:03:00.4]} 2. Nf3 {[%clk 0:02:41.8]}
2... Nc6 {[%clk 0:03:01.5]} 3. Nc3 {[%clk 0:02:41.1]} 3... Nf6 {[%clk 0:03:02]}
4. Bb5 {[%clk 0:02:41.8]} 4... Bb4 {[%clk 0:03:02.2]} 5. O-O {[%clk 0:02:41.9]}
5... O-O {[%clk 0:03:02.3]} 6. d3 {[%clk 0:02:43.2]} 6... d6 {[%clk 0:03:02.9]}
7. Bg5 {[%clk 0:02:40.1]} 7... Bxc3 {[%clk 0:03:02.9]} 8. bxc3 {[%clk
0:02:41.3]} 8... h6 {[%clk 0:02:58.6]} 9. Bh4 {[%clk 0:02:41.5]} 9... Qe7 {[%clk
0:02:59.3]} 10. Re1 {[%clk 0:02:42.2]} 10... Nd8 {[%clk 0:02:57]} 11. d4 {[%clk
0:02:43.1]} 11... Bg4 {[%clk 0:02:54.4]} 12. h3 {[%clk 0:02:38.5]} 12... Bxf3
{[%clk 0:02:51.6]} 13. Qxf3 {[%clk 0:02:40.4]} 13... Ne6 {[%clk 0:02:52.6]} 14.
Rad1 {[%clk 0:02:28]} 14... g5 {[%clk 0:02:41.5]} 15. Bg3 {[%clk 0:02:28.5]}
15... Nf4 {[%clk 0:02:40.7]} 16. Bf1 {[%clk 0:02:28.8]} 16... Kh8 {[%clk
0:02:29.5]} 17. Qe3 {[%clk 0:02:20.6]} 17... Qe6 {[%clk 0:02:20.9]} 18. c4
{[%clk 0:02:10.6]} 18... exd4 {[%clk 0:02:06.6]} 19. Qxd4 {[%clk 0:02:09.2]}
19... Qe5 {[%clk 0:02:06.9]} 20. Qxe5 {[%clk 0:02:05.5]} 20... dxe5 {[%clk
0:02:08.8]} 21. f3 {[%clk 0:02:03.6]} 21... c5 {[%clk 0:01:57.8]} 22. Rd6 {[%clk
0:01:57.8]} 22... Kg7 {[%clk 0:01:57.1]} 23. Red1 {[%clk 0:01:58.8]} 23... Rfe8
{[%clk 0:01:51]} 24. a4 {[%clk 0:01:58.2]} 24... Re6 {[%clk 0:01:45.9]} 25. Rxe6
{[%clk 0:01:55.8]} 25... fxe6 {[%clk 0:01:46.4]} 26. Bf2 {[%clk 0:01:56.3]}
26... b6 {[%clk 0:01:45.3]} 27. g3 {[%clk 0:01:56.9]} 27... Ng6 {[%clk
0:01:42.7]} 28. a5 {[%clk 0:01:58.1]} 28... Kf7 {[%clk 0:01:38.1]} 29. Ra1
{[%clk 0:01:53.9]} 29... Rb8 {[%clk 0:01:34.9]} 30. axb6 {[%clk 0:01:54.4]}
30... axb6 {[%clk 0:01:36.8]} 31. Ra7+ {[%clk 0:01:48.6]} 31... Ne7 {[%clk
0:01:37.1]} 32. c3 {[%clk 0:01:44.7]} 32... Rd8 {[%clk 0:01:22.2]} 33. Rb7
{[%clk 0:01:43.3]} 33... Rd6 {[%clk 0:01:19.8]} 34. Be3 {[%clk 0:01:38.3]} 34...
Nh5 {[%clk 0:00:56.2]} 35. Kf2 {[%clk 0:01:37.6]} 35... Ke8 {[%clk 0:00:56.3]}
36. Be2 {[%clk 0:01:37.2]} 36... Kd8 {[%clk 0:00:52.5]} 37. Rb8+ {[%clk
0:01:24.6]} 37... Nc8 {[%clk 0:00:49.4]} 38. Ra8 {[%clk 0:01:24.6]} 38... Kc7
{[%clk 0:00:48]} 39. Ra1 {[%clk 0:01:24.5]} 39... Kb7 {[%clk 0:00:44]} 40. Rh1
{[%clk 0:01:16.9]} 40... Nf6 {[%clk 0:00:30.7]} 41. h4 {[%clk 0:01:17.3]} 41...
g4 {[%clk 0:00:32.2]} 42. Bxh6 {[%clk 0:01:17.2]} 42... gxf3 {[%clk 0:00:33.4]}
43. Kxf3 {[%clk 0:01:16.5]} 43... Rd3+ {[%clk 0:00:34.8]} 44. Bxd3 {[%clk
0:01:16.8]} 1-0

[Event "*** MasterClass Titled Tuesday Blitz"]
[Site "Chess.com"]
[Date "2017.10.03"]
[Round "3"]
[White "Kawhi_Leonard2"]
[Black "JosephRyan"]
[Result "1-0"]
[WhiteElo "2240"]
[BlackElo "2224"]
[TimeControl "180+2"]
[EndTime "13:35:47 PDT"]
[Termination "Kawhi_Leonard2 won by checkmate"]

1. e4 {[%clk 0:03:01.9]} 1... c6 {[%clk 0:02:57.3]} 2. d4 {[%clk 0:02:58.5]}
2... d5 {[%clk 0:02:57.6]} 3. Nc3 {[%clk 0:02:59.7]} 3... dxe4 {[%clk
0:02:58.1]} 4. Nxe4 {[%clk 0:03:00.1]} 4... Nf6 {[%clk 0:02:58.9]} 5. Nxf6+
{[%clk 0:03:01.1]} 5... gxf6 {[%clk 0:03:00.4]} 6. c3 {[%clk 0:03:02.4]} 6...
Bf5 {[%clk 0:02:58.9]} 7. Ne2 {[%clk 0:03:02.7]} 7... Nd7 {[%clk 0:02:51.4]} 8.
Ng3 {[%clk 0:03:03.5]} 8... Bg6 {[%clk 0:02:52]} 9. h4 {[%clk 0:03:05]} 9... h5
{[%clk 0:02:52.8]} 10. Be2 {[%clk 0:03:06.5]} 10... Qa5 {[%clk 0:02:53]} 11. a4
{[%clk 0:03:07.6]} 11... e6 {[%clk 0:02:49.3]} 12. b4 {[%clk 0:03:08.4]} 12...
Qc7 {[%clk 0:02:44.2]} 13. Qb3 {[%clk 0:03:07]} 13... Bd6 {[%clk 0:02:43]} 14.
c4 {[%clk 0:03:05.5]} 14... Bxg3 {[%clk 0:02:38.7]} 15. fxg3 {[%clk 0:03:06]}
15... Be4 {[%clk 0:02:35.5]} 16. O-O {[%clk 0:03:03.2]} 16... f5 {[%clk
0:02:35.1]} 17. Bf4 {[%clk 0:03:00.1]} 17... Qb6 {[%clk 0:02:33.1]} 18. c5
{[%clk 0:02:57.6]} 18... Qd8 {[%clk 0:02:28.9]} 19. b5 {[%clk 0:02:58.7]} 19...
Bd5 {[%clk 0:02:21.6]} 20. Bc4 {[%clk 0:02:59]} 20... Nf8 {[%clk 0:02:16.4]} 21.
Rae1 {[%clk 0:02:45.9]} 21... Ng6 {[%clk 0:02:03.3]} 22. Bd6 {[%clk 0:02:46.5]}
22... Kd7 {[%clk 0:02:00.6]} 23. Bxd5 {[%clk 0:02:30.9]} 23... cxd5 {[%clk
0:02:00.8]} 24. Qb4 {[%clk 0:01:46.1]} 24... Qc8 {[%clk 0:01:46.8]} 25. a5
{[%clk 0:01:33]} 25... a6 {[%clk 0:01:45.1]} 26. Rb1 {[%clk 0:01:15.7]} 26...
Ra7 {[%clk 0:01:37.7]} 27. Rb3 {[%clk 0:01:16.4]} 27... axb5 {[%clk 0:01:37.1]}
28. Qxb5+ {[%clk 0:01:17]} 28... Qc6 {[%clk 0:01:37.7]} 29. Rfb1 {[%clk
0:01:17.7]} 29... Rha8 {[%clk 0:01:08]} 30. Qxc6+ {[%clk 0:00:58]} 30... bxc6
{[%clk 0:01:08.7]} 31. Rb7+ {[%clk 0:00:58.4]} 31... Rxb7 {[%clk 0:00:51.7]} 32.
Rxb7+ {[%clk 0:00:58.6]} 32... Ke8 {[%clk 0:00:52.4]} 33. Rc7 {[%clk 0:00:37.7]}
33... Rxa5 {[%clk 0:00:50.8]} 34. Rxc6 {[%clk 0:00:39]} 34... Ra4 {[%clk
0:00:46.2]} 35. Rb6 {[%clk 0:00:34.4]} 35... Rxd4 {[%clk 0:00:40.2]} 36. c6
{[%clk 0:00:35.6]} 36... Rc4 {[%clk 0:00:41.1]} 37. Rb8# {[%clk 0:00:36.3]} 1-0

[Event "*** MasterClass Titled Tuesday Blitz"]
[Site "Chess.com"]
[Date "2017.10.03"]
[Round "3"]
[White "ruzomberok"]
[Black "EuropeanChampion"]
[Result "1-0"]
[WhiteElo "2368"]
[BlackElo "2176"]
[TimeControl "180+2"]
[EndTime "13:35:49 PDT"]
[Termination "ruzomberok won by checkmate"]

1. d4 {[%clk 0:03:01.9]} 1... Nf6 {[%clk 0:03:00.9]} 2. c4 {[%clk 0:03:01.8]}
2... g6 {[%clk 0:03:02.4]} 3. Nc3 {[%clk 0:03:02.4]} 3... Bg7 {[%clk 0:03:03]}
4. e4 {[%clk 0:03:02.9]} 4... d6 {[%clk 0:03:04.6]} 5. Nf3 {[%clk 0:03:03.8]}
5... O-O {[%clk 0:03:06.2]} 6. Be2 {[%clk 0:03:05]} 6... e5 {[%clk 0:03:07.8]}
7. d5 {[%clk 0:03:05.7]} 7... a5 {[%clk 0:03:07.6]} 8. Bg5 {[%clk 0:03:05.4]}
8... h6 {[%clk 0:03:08]} 9. Be3 {[%clk 0:03:05.9]} 9... Ng4 {[%clk 0:03:08.4]}
10. Bd2 {[%clk 0:03:07.1]} 10... f5 {[%clk 0:03:09]} 11. exf5 {[%clk 0:03:08]}
11... gxf5 {[%clk 0:03:09.6]} 12. h3 {[%clk 0:03:09.5]} 12... Nxf2 {[%clk
0:03:04]} 13. Kxf2 {[%clk 0:03:10.8]} 13... e4 {[%clk 0:03:05.6]} 14. Ng1 {[%clk
0:02:52.1]} 14... Bd4+ {[%clk 0:02:58.9]} 15. Kf1 {[%clk 0:02:49.7]} 15... Qh4
{[%clk 0:02:55.8]} 16. Qe1 {[%clk 0:02:40.3]} 16... Qf4+ {[%clk 0:02:54.8]} 17.
Bxf4 {[%clk 0:02:38.4]} 17... Nd7 {[%clk 0:02:04.8]} 18. Qd2 {[%clk 0:02:36.7]}
18... Bf6 {[%clk 0:02:04.2]} 19. g4 {[%clk 0:02:36]} 19... Nc5 {[%clk
0:02:03.5]} 20. g5 {[%clk 0:02:35.5]} 20... hxg5 {[%clk 0:02:03.9]} 21. Bxg5
{[%clk 0:02:37.4]} 21... Be5 {[%clk 0:02:05.4]} 22. Bf4 {[%clk 0:02:35.3]} 22...
Bg7 {[%clk 0:02:04.4]} 23. h4 {[%clk 0:02:35.7]} 23... Rf6 {[%clk 0:02:04.2]}
24. Nh3 {[%clk 0:02:36.5]} 24... Rg6 {[%clk 0:02:04.9]} 25. h5 {[%clk
0:02:36.3]} 25... Rg4 {[%clk 0:02:03.5]} 26. Bxg4 {[%clk 0:02:36.5]} 26... fxg4
{[%clk 0:02:05.4]} 27. Ng5 {[%clk 0:02:37.2]} 27... Bf5 {[%clk 0:02:06.5]} 28.
Kg2 {[%clk 0:02:36.8]} 28... Rf8 {[%clk 0:02:06.1]} 29. h6 {[%clk 0:02:36.1]}
29... Bf6 {[%clk 0:02:07.6]} 30. Ne6 {[%clk 0:02:36]} 30... Bxe6 {[%clk
0:02:07.3]} 31. dxe6 {[%clk 0:02:37.9]} 31... Nxe6 {[%clk 0:02:09.2]} 32. Nxe4
{[%clk 0:02:37.2]} 32... Bxb2 {[%clk 0:01:23.6]} 33. h7+ {[%clk 0:00:07.1]}
33... Kf7 {[%clk 0:01:23.8]} 34. Qxb2 {[%clk 0:00:07.8]} 34... Nxf4+ {[%clk
0:01:24.3]} 35. Kg3 {[%clk 0:00:09.3]} 35... Ke7 {[%clk 0:01:25.9]} 36. h8=Q
{[%clk 0:00:09.2]} 36... Ne2+ {[%clk 0:01:21]} 37. Qxe2 {[%clk 0:00:09.9]} 37...
Rf3+ {[%clk 0:01:21.3]} 38. Qxf3 {[%clk 0:00:11]} 38... gxf3 {[%clk 0:01:23.2]}
39. Rh7+ {[%clk 0:00:11.7]} 39... Ke6 {[%clk 0:01:24.5]} 40. Qf6# {[%clk
0:00:12.5]} 1-0

[Event "*** MasterClass Titled Tuesday Blitz"]
[Site "Chess.com"]
[Date "2017.10.03"]
[Round "3"]
[White "pultineviciuspaulius"]
[Black "gmcorrales"]
[Result "0-1"]
[WhiteElo "2429"]
[BlackElo "2651"]
[TimeControl "180+2"]
[EndTime "13:35:58 PDT"]
[Termination "gmcorrales won by resignation"]

1. Nf3 {[%clk 0:03:01.8]} 1... c6 {[%clk 0:02:07.8]} 2. g3 {[%clk 0:03:02.4]}
2... d5 {[%clk 0:02:07.6]} 3. Bg2 {[%clk 0:03:02.9]} 3... Nf6 {[%clk 0:02:09.2]}
4. O-O {[%clk 0:03:03.8]} 4... g6 {[%clk 0:02:10.5]} 5. d4 {[%clk 0:03:00.5]}
5... Bg7 {[%clk 0:02:11.3]} 6. c4 {[%clk 0:03:02.4]} 6... O-O {[%clk 0:02:12.8]}
7. b3 {[%clk 0:03:03.7]} 7... a5 {[%clk 0:02:13]} 8. Nc3 {[%clk 0:02:58]} 8...
Ne4 {[%clk 0:02:11.7]} 9. Bb2 {[%clk 0:02:57.9]} 9... Nxc3 {[%clk 0:02:08.1]}
10. Bxc3 {[%clk 0:02:59.8]} 10... a4 {[%clk 0:01:45.5]} 11. e3 {[%clk
0:02:57.5]} 11... a3 {[%clk 0:01:32.2]} 12. Qe2 {[%clk 0:02:48.1]} 12... dxc4
{[%clk 0:01:31.9]} 13. bxc4 {[%clk 0:02:46.3]} 13... c5 {[%clk 0:01:33.2]} 14.
Rfd1 {[%clk 0:02:43.9]} 14... Nc6 {[%clk 0:01:33]} 15. Rab1 {[%clk 0:02:04.8]}
15... cxd4 {[%clk 0:01:33.8]} 16. exd4 {[%clk 0:02:04.8]} 16... Qc7 {[%clk
0:01:30.4]} 17. Ne5 {[%clk 0:01:29]} 17... Nxe5 {[%clk 0:01:28.8]} 18. dxe5
{[%clk 0:01:29.5]} 18... Ra4 {[%clk 0:01:30.3]} 19. Rb4 {[%clk 0:00:49.1]} 19...
Rxb4 {[%clk 0:01:31]} 20. Bxb4 {[%clk 0:00:51]} 20... Be6 {[%clk 0:01:32.3]} 21.
Bxa3 {[%clk 0:00:50.8]} 21... Ra8 {[%clk 0:01:32.7]} 22. Bb4 {[%clk 0:00:41.4]}
22... Bxe5 {[%clk 0:01:28.7]} 23. Rc1 {[%clk 0:00:34.9]} 23... Ra4 {[%clk
0:01:27.6]} 24. a3 {[%clk 0:00:35.4]} 24... Ra8 {[%clk 0:01:22.3]} 25. c5 {[%clk
0:00:36.6]} 25... Bf6 {[%clk 0:01:12.9]} 26. c6 {[%clk 0:00:33.3]} 26... Rd8
{[%clk 0:01:13.5]} 27. Qe3 {[%clk 0:00:31.2]} 27... bxc6 {[%clk 0:01:12.2]} 28.
Bxc6 {[%clk 0:00:32.3]} 28... Bd4 {[%clk 0:01:09]} 29. Qe1 {[%clk 0:00:31.6]}
29... Rc8 {[%clk 0:01:05]} 30. Ba5 {[%clk 0:00:30.3]} 30... Qa7 {[%clk
0:01:02.6]} 31. Bb4 {[%clk 0:00:31.3]} 31... Bd7 {[%clk 0:00:45.9]} 32. Bxd7
{[%clk 0:00:27.8]} 32... Bxf2+ {[%clk 0:00:46.9]} 33. Qxf2 {[%clk 0:00:27.8]}
33... Rxc1+ {[%clk 0:00:47.8]} 34. Kg2 {[%clk 0:00:21.7]} 34... Qxd7 {[%clk
0:00:48.1]} 35. Qf4 {[%clk 0:00:19]} 35... Rc2+ {[%clk 0:00:47.9]} 0-1

[Event "*** MasterClass Titled Tuesday Blitz"]
[Site "Chess.com"]
[Date "2017.10.03"]
[Round "3"]
[White "SabinaFoisor"]
[Black "Bryakin_Mikhail"]
[Result "0-1"]
[WhiteElo "2281"]
[BlackElo "2493"]
[TimeControl "180+2"]
[EndTime "13:36:05 PDT"]
[Termination "Bryakin_Mikhail won by resignation"]

1. d4 {[%clk 0:03:01.9]} 1... d5 {[%clk 0:02:54.4]} 2. c4 {[%clk 0:03:02.8]}
2... c6 {[%clk 0:02:53.7]} 3. Nf3 {[%clk 0:03:00.7]} 3... Nf6 {[%clk 0:02:54.3]}
4. Nbd2 {[%clk 0:03:00.4]} 4... a6 {[%clk 0:02:54.1]} 5. e3 {[%clk 0:02:55.1]}
5... b5 {[%clk 0:02:54.2]} 6. b3 {[%clk 0:02:53.9]} 6... Bf5 {[%clk 0:02:55.3]}
7. Be2 {[%clk 0:02:51.4]} 7... e6 {[%clk 0:02:56.2]} 8. c5 {[%clk 0:02:49.9]}
8... Nbd7 {[%clk 0:02:56.2]} 9. O-O {[%clk 0:02:50.6]} 9... a5 {[%clk
0:02:56.4]} 10. Nh4 {[%clk 0:02:47.2]} 10... Be4 {[%clk 0:02:53.4]} 11. f3
{[%clk 0:02:43]} 11... Bg6 {[%clk 0:02:54.5]} 12. Nxg6 {[%clk 0:02:40.1]} 12...
hxg6 {[%clk 0:02:56.4]} 13. e4 {[%clk 0:02:40.8]} 13... e5 {[%clk 0:02:49.6]}
14. exd5 {[%clk 0:02:23.4]} 14... Nxd5 {[%clk 0:02:48.7]} 15. Ne4 {[%clk
0:02:11.5]} 15... Be7 {[%clk 0:02:30.3]} 16. dxe5 {[%clk 0:01:46.3]} 16... Nxc5
{[%clk 0:02:24.5]} 17. Nd6+ {[%clk 0:01:24.2]} 17... Bxd6 {[%clk 0:02:19.2]} 18.
exd6 {[%clk 0:01:26.1]} 18... Qxd6 {[%clk 0:02:19.2]} 19. f4 {[%clk 0:01:11.6]}
19... O-O {[%clk 0:02:12.9]} 20. Bb2 {[%clk 0:01:08.9]} 20... Qe6 {[%clk
0:02:00.8]} 21. Qd4 {[%clk 0:00:44.1]} 21... Qe3+ {[%clk 0:01:46]} 22. Qxe3
{[%clk 0:00:44.6]} 22... Nxe3 {[%clk 0:01:47.9]} 23. Bd4 {[%clk 0:00:40.4]}
23... Nxf1 {[%clk 0:01:32.4]} 24. Bxc5 {[%clk 0:00:41]} 24... Nd2 {[%clk
0:01:33.4]} 25. Bxf8 {[%clk 0:00:36.5]} 25... Kxf8 {[%clk 0:01:35.3]} 26. Rc1
{[%clk 0:00:28.9]} 26... Re8 {[%clk 0:01:33.2]} 27. Kf2 {[%clk 0:00:20.2]} 27...
Ne4+ {[%clk 0:01:33.8]} 28. Kf3 {[%clk 0:00:20.7]} 28... Re6 {[%clk 0:01:33.3]}
29. Bd3 {[%clk 0:00:19.4]} 29... Nf6 {[%clk 0:01:27.3]} 30. f5 {[%clk 0:00:20]}
30... Rd6 {[%clk 0:01:26.5]} 31. Bb1 {[%clk 0:00:16.3]} 31... g5 {[%clk
0:01:25.9]} 32. g4 {[%clk 0:00:16]} 32... Ke7 {[%clk 0:01:26.8]} 33. Be4 {[%clk
0:00:15.1]} 33... Nxe4 {[%clk 0:01:25.4]} 34. Kxe4 {[%clk 0:00:17]} 34... Rh6
{[%clk 0:01:27.2]} 35. Rc2 {[%clk 0:00:17.6]} 35... Kd6 {[%clk 0:01:28.4]} 36.
a4 {[%clk 0:00:17.3]} 36... Rh4 {[%clk 0:01:24.6]} 37. axb5 {[%clk 0:00:13.1]}
37... Rxg4+ {[%clk 0:01:22.6]} 38. Ke3 {[%clk 0:00:09.5]} 38... cxb5 {[%clk
0:01:23.1]} 39. Ra2 {[%clk 0:00:10.4]} 39... a4 {[%clk 0:01:23.1]} 40. bxa4
{[%clk 0:00:12.3]} 40... bxa4 {[%clk 0:01:25]} 41. h3 {[%clk 0:00:12]} 41... Rh4
{[%clk 0:01:25.1]} 42. Kf2 {[%clk 0:00:11.7]} 42... Ke5 {[%clk 0:01:25.3]} 43.
Kg3 {[%clk 0:00:09.5]} 43... Kxf5 {[%clk 0:01:26.1]} 0-1

[Event "*** MasterClass Titled Tuesday Blitz"]
[Site "Chess.com"]
[Date "2017.10.03"]
[Round "3"]
[White "r31415"]
[Black "TrickyTrapChess"]
[Result "0-1"]
[WhiteElo "2172"]
[BlackElo "2298"]
[TimeControl "180+2"]
[EndTime "13:36:07 PDT"]
[Termination "TrickyTrapChess won by checkmate"]

1. e4 {[%clk 0:03:01.9]} 1... e6 {[%clk 0:02:57.1]} 2. d4 {[%clk 0:02:59.6]}
2... d5 {[%clk 0:02:58.4]} 3. Nc3 {[%clk 0:03:00.6]} 3... Nf6 {[%clk 0:02:57.5]}
4. e5 {[%clk 0:03:01.9]} 4... Nfd7 {[%clk 0:02:58.6]} 5. f4 {[%clk 0:03:03.4]}
5... c5 {[%clk 0:02:58]} 6. Nf3 {[%clk 0:03:04.9]} 6... a6 {[%clk 0:02:58.9]} 7.
Be3 {[%clk 0:03:04.7]} 7... Nc6 {[%clk 0:02:58.4]} 8. Qd2 {[%clk 0:03:03.7]}
8... b5 {[%clk 0:02:57.7]} 9. dxc5 {[%clk 0:03:04.9]} 9... Bxc5 {[%clk
0:02:56.7]} 10. Bxc5 {[%clk 0:03:05.9]} 10... Nxc5 {[%clk 0:02:56.8]} 11. Qf2
{[%clk 0:03:07.4]} 11... Qb6 {[%clk 0:02:50.9]} 12. Bd3 {[%clk 0:03:07.6]} 12...
b4 {[%clk 0:02:48.6]} 13. Ne2 {[%clk 0:03:08.5]} 13... a5 {[%clk 0:02:47.8]} 14.
O-O {[%clk 0:03:09.3]} 14... Ba6 {[%clk 0:02:46.1]} 15. Rfd1 {[%clk 0:03:08.7]}
15... O-O {[%clk 0:02:44.7]} 16. Rac1 {[%clk 0:02:59.3]} 16... Rac8 {[%clk
0:02:39.7]} 17. Kf1 {[%clk 0:02:24.3]} 17... Ne7 {[%clk 0:02:27.6]} 18. Qe3
{[%clk 0:01:47.1]} 18... Bxd3 {[%clk 0:02:15.8]} 19. cxd3 {[%clk 0:01:47.8]}
19... Nf5 {[%clk 0:02:16.3]} 20. Qd2 {[%clk 0:01:44.3]} 20... b3 {[%clk
0:02:13.1]} 21. a3 {[%clk 0:01:41.5]} 21... Na4 {[%clk 0:02:05.7]} 22. d4 {[%clk
0:01:38.7]} 22... Nxb2 {[%clk 0:02:06.6]} 23. Qxb2 {[%clk 0:01:37.4]} 23... Ne3+
{[%clk 0:02:01.1]} 24. Ke1 {[%clk 0:01:34.4]} 24... Rxc1 {[%clk 0:01:55.7]} 25.
Rxc1 {[%clk 0:01:31.9]} 25... Nc4 {[%clk 0:01:56.4]} 26. Qc3 {[%clk 0:01:26]}
26... Nxa3 {[%clk 0:01:54.3]} 27. Nd2 {[%clk 0:01:15.8]} 27... b2 {[%clk
0:01:50.8]} 28. Rd1 {[%clk 0:01:16.7]} 28... b1=Q {[%clk 0:01:49.7]} 29. Nxb1
{[%clk 0:01:17.6]} 29... Nxb1 {[%clk 0:01:49.7]} 30. Qd3 {[%clk 0:00:48.9]}
30... Rb8 {[%clk 0:01:47.4]} 31. Kf2 {[%clk 0:00:32.4]} 31... a4 {[%clk
0:01:42.6]} 32. Nc1 {[%clk 0:00:27.6]} 32... a3 {[%clk 0:01:41.7]} 33. Kf3
{[%clk 0:00:14]} 33... Qb2 {[%clk 0:01:40.4]} 34. Qa6 {[%clk 0:00:05.8]} 34...
Nc3 {[%clk 0:01:38.7]} 35. Qa7 {[%clk 0:00:02.9]} 35... Nxd1 {[%clk 0:01:36.6]}
36. Nd3 {[%clk 0:00:04.5]} 36... Qb3 {[%clk 0:01:33]} 37. Kg4 {[%clk 0:00:03.9]}
37... a2 {[%clk 0:01:30.7]} 38. Nc5 {[%clk 0:00:05.1]} 38... a1=Q {[%clk
0:01:25.3]} 39. Qxa1 {[%clk 0:00:04.7]} 39... Ne3+ {[%clk 0:01:23.4]} 40. Kh5
{[%clk 0:00:03.9]} 40... Qc2 {[%clk 0:01:21.3]} 41. Qa7 {[%clk 0:00:04.2]} 41...
Qe2+ {[%clk 0:01:19.8]} 42. g4 {[%clk 0:00:03]} 42... Qxg4# {[%clk 0:01:19.9]}
0-1